bitfinex-derivatives/quotes_ETHF0:USTF0_20230830
["timestamp","ask_amount","ask_price","bid_price","bid_amount"]
[1693389111325,5.254,1716.4,1716.3,4.64138176]
[1693389111628,7.53781558,1716.4,1716.3,3.2078]
[1693389112333,5.254,1716.4,1716.3,3.2078]
[1693389112533,7.53781558,1716.4,1716.3,3.2078]
[1693389117128,2.28381558,1716.4,1716.3,4.64138176]
[1693389117334,1.52309507,1716.5,1716.3,22.67975995]
[1693389117635,1.52309507,1716.5,1716.3,19.76615929]
[1693389117836,1.52309507,1716.5,1716.4,5.18344671]
[1693389118031,1.52309507,1716.5,1716.4,5.18344945]
[1693389118535,1.52309507,1716.6,1716.4,7.47174849]
[1693389118834,1.52309507,1716.6,1716.5,7.55489473]
[1693389120639,1.52309507,1716.6,1716.5,9.84319377]
[1693389125138,1.52309507,1716.6,1716.5,22.62429842]
[1693389125337,1.52309507,1716.7,1716.5,23.38706477]
[1693389125539,1.52309507,1716.7,1716.6,12.7273914]
[1693389125840,1.52309507,1716.7,1716.6,20.24714813]
[1693389126544,2.28381558,1716.7,1716.6,15.04369321]
[1693389127539,1.70131558,1716.7,1716.6,15.04369321]
[1693389128843,1.52397669,1716.7,1716.6,19.48314829]
[1693389129049,0.94147669,1716.7,1716.6,21.77309024]
[1693389129342,0.00873794,1716.8,1716.6,21.77278884]
[1693389129647,2.47132538,1716.9,1716.7,9.89538176]
[1693389130046,7.7046,1717.0,1716.8,9.85215788]
[1693389130243,7.7046,1717.0,1716.9,4.64138176]
[1693389136554,7.7046,1717.0,1716.9,3.2078]
[1693389145960,7.7046,1717.0,1716.7,3.67611018]
[1693389146160,5.254,1716.9,1716.7,3.2078]
[1693389146360,5.254,1716.9,1716.7,4.64138176]
[1693389146663,2.5097,1716.8,1716.7,4.64138176]
[1693389148860,2.5097,1716.8,1716.7,12.24290859]
[1693389152467,2.5097,1716.8,1716.7,10.80932683]
[1693389152861,2.5097,1716.8,1716.7,12.24290859]
[1693389156365,2.5097,1716.8,1716.7,12.33547108]
[1693389156560,2.5097,1716.8,1716.7,4.73394425]
[1693389156763,7.7637,1716.8,1716.7,3.2078]
[1693389161268,7.7637,1716.8,1716.7,4.73394425]
[1693389164281,7.7637,1716.8,1716.7,3.2078]
[1693389164485,11.5700593,1716.8,1716.7,3.2078]
[1693389167379,10.81367808,1716.8,1716.7,4.64138176]
[1693389167577,3.04997808,1716.8,1716.7,4.64138176]
[1693389169484,2.6161,1716.8,1716.7,3.2078]
[1693389169985,2.6161,1716.8,1716.7,4.64138176]
[1693389170582,6.4224593,1716.8,1716.7,4.64138176]
[1693389171374,2.6161,1716.8,1716.7,11.37063019]
[1693389171580,2.6161,1716.8,1716.7,9.08068824]
[1693389172082,7.8701,1716.8,1716.7,9.08068824]
[1693389172785,7.8701,1716.8,1716.7,9.08214351]
[1693389175391,7.8701,1716.8,1716.7,11.37354673]
[1693389177384,10.92073785,1716.8,1716.7,11.37354673]
[1693389177987,7.8701,1716.8,1716.7,9.84594459]
[1693389178490,11.68339731,1716.8,1716.7,4.64138176]
[1693389179888,11.68339731,1716.8,1716.7,3.2078]
[1693389182191,7.8701,1716.8,1716.7,3.2078]
[1693389186595,11.6849012,1716.8,1716.7,3.2078]
[1693389190196,11.6849012,1716.8,1716.7,4.73560197]
[1693389190392,11.6849012,1716.8,1716.7,6.16918373]
[1693389190594,7.8701,1716.8,1716.7,6.16918373]
[1693389191893,11.6849012,1716.8,1716.7,6.16918373]
[1693389192287,10.9221223,1716.8,1716.7,6.16918373]
[1693389192494,7.8701,1716.8,1716.7,6.16918373]
[1693389192896,10.92218116,1716.8,1716.7,6.16918373]
[1693389193091,10.92215625,1716.8,1716.7,6.16918373]
[1693389193389,7.8701,1716.8,1716.7,6.16918373]
[1693389193797,10.92216662,1716.8,1716.7,7.64881382]
[1693389194000,10.92216662,1716.8,1716.7,9.94021704]
[1693389194396,10.92216662,1716.8,1716.7,7.64881382]
[1693389195201,10.92216662,1716.8,1716.7,9.94021704]
[1693389195697,10.92216662,1716.8,1716.7,7.64881382]
[1693389196602,10.92216662,1716.8,1716.7,9.94021704]
[1693389196801,7.8701,1716.8,1716.7,4.73560197]
[1693389197099,11.6849012,1716.8,1716.7,4.73560197]
[1693389202001,11.6849012,1716.8,1716.7,3.2078]
[1693389207309,7.8701,1716.8,1716.7,3.2078]
[1693389208511,8.32799801,1716.8,1716.7,3.2078]
[1693389209013,12.1426565,1716.8,1716.7,3.2078]
[1693389216120,8.32799801,1716.8,1716.7,3.2078]
[1693389224018,12.14226997,1716.8,1716.7,3.2078]
[1693389225425,0.08108737,1716.7,1716.6,1.52780197]
[1693389225619,8.38672457,1716.7,1716.6,1.52780197]
[1693389225922,8.38672457,1716.7,1716.6,4.44123323]
[1693389230421,8.54288737,1716.7,1716.4,4.28881331]
[1693389230625,8.30510282,1716.5,1716.4,3.82794365]
[1693389230815,8.30510282,1716.5,1716.4,6.74167286]
[1693389231019,8.38619019,1716.5,1716.4,4.45026964]
[1693389231521,8.38619019,1716.5,1716.4,1.53654043]
[1693389235526,7.62219316,1716.5,1716.4,1.53654043]
[1693389235926,7.62219316,1716.5,1716.4,4.45022981]
[1693389236527,7.62219316,1716.5,1716.4,1.53654043]
[1693389236727,7.62219316,1716.5,1716.4,4.45021836]
[1693389239121,8.38619019,1716.5,1716.4,0.00873846]
[1693389242932,8.85729948,1716.5,1716.4,0.00873846]
[1693389244231,9.62007519,1716.5,1716.4,0.00873846]
[1693389246328,8.85547819,1716.5,1716.4,1.53654043]
[1693389246520,8.85547819,1716.5,1716.4,0.00873846]
[1693389254141,9.62007519,1716.5,1716.4,0.00873846]
[1693389255240,5.80619666,1716.5,1716.4,0.00873846]
[1693389255441,9.62007519,1716.5,1716.4,0.00873846]
[1693389255639,5.80619666,1716.5,1716.4,0.00873846]
[1693389255843,11.06019666,1716.5,1716.4,0.00873846]
[1693389256134,14.87407519,1716.5,1716.4,0.00873846]
[1693389256341,17.45637519,1716.5,1716.4,0.00873846]
[1693389261344,16.69108282,1716.5,1716.4,0.00873846]
[1693389265755,11.43708282,1716.5,1716.4,0.00873846]
[1693389269451,12.20237519,1716.5,1716.4,0.00873846]
[1693389274252,12.20168398,1716.5,1716.4,0.00873846]
[1693389275660,8.38849666,1716.5,1716.4,0.00873846]
[1693389276360,12.20282575,1716.5,1716.4,0.00873846]
[1693389276558,12.20282575,1716.5,1716.4,1.5368925]
[1693389283679,12.20282575,1716.5,1716.4,2.97047426]
[1693389284480,12.20282575,1716.5,1716.4,1.44232022]
[1693389289375,12.20282575,1716.5,1716.4,1.5368925]
[1693389289877,12.20282575,1716.5,1716.4,2.97047426]
[1693389291081,9.53943838,1716.5,1716.4,2.97047426]
[1693389291581,5.72510929,1716.5,1716.4,1.44232022]
[1693389297286,9.54110081,1716.5,1716.4,2.97047426]
[1693389299583,9.54110081,1716.5,1716.4,8.17641216]
[1693389300584,9.54110081,1716.5,1716.4,5.8841811]
[1693389300786,9.54110081,1716.5,1716.4,8.17641216]
[1693389303192,9.54110081,1716.5,1716.4,6.7428304]
[1693389304587,1.1656,1716.4,1716.2,1.52815404]
[1693389304791,12.35820455,1716.3,1716.2,1.52815404]
[1693389305183,12.35820455,1716.3,1716.1,3.8203851]
[1693389305494,10.93867791,1716.2,1716.1,1.52815404]
[1693389306590,11.70291718,1716.2,1716.0,1.53689428]
[1693389306896,8.3853624,1716.1,1716.0,1.53689428]
[1693389307691,8.3853624,1716.1,1716.0,2.00085697]
[1693389308396,8.3853624,1716.1,1716.0,0.47270293]
[1693389309589,8.3853624,1716.1,1716.0,0.00874024]
[1693389310299,8.38366242,1716.1,1716.0,0.00874024]
[1693389311195,8.38366242,1716.1,1716.0,1.442322]
[1693389312701,8.38366242,1716.1,1716.0,0.00874024]
[1693389314400,5.33508737,1716.1,1716.0,0.00874024]
[1693389314611,6.8585464,1716.1,1716.0,1.5363813]
[1693389314904,9.14373495,1716.1,1716.0,1.5363813]
[1693389316406,6.8585464,1716.1,1716.0,1.5363813]
[1693389316803,8.54288737,1716.1,1715.8,3.81816485]
[1693389316999,6.77713793,1715.9,1715.8,1.52670325]
[1693389317506,6.8582253,1715.9,1715.8,1.52670325]
[1693389319511,5.33508737,1715.9,1715.8,1.98895552]
[1693389320404,5.254,1715.9,1715.8,1.98895552]
[1693389320610,5.254,1715.9,1715.8,3.42253728]
[1693389320806,5.254,1715.9,1715.8,2.96028501]
[1693389321008,5.254,1715.9,1715.8,1.43358176]
[1693389322704,5.254,1715.9,1715.8,2.96028501]
[1693389323508,5.254,1715.9,1715.8,1.52670325]
[1693389324007,5.254,1715.9,1715.8,2.96028501]
[1693389326812,5.254,1715.9,1715.8,1.52670325]
[1693389328610,5.254,1715.9,1715.8,2.96028501]
[1693389329815,8.30257505,1715.9,1715.8,1.43358176]
[1693389333412,8.30257505,1715.9,1715.8,1.43671653]
[1693389335524,3.04857505,1715.9,1715.8,1.43671653]
[1693389335818,2.28252197,1715.9,1715.8,8.86859943]
[1693389336013,2.28252197,1715.9,1715.8,14.12259943]
[1693389336923,5.254,1716.1,1715.8,20.09210404]
[1693389337131,5.254,1716.1,1716.0,3.2078]
[1693389337427,5.254,1716.1,1716.0,8.43984652]
[1693389342545,5.254,1716.1,1716.0,6.91469781]
[1693389342728,5.254,1716.1,1716.0,8.44073316]
[1693389343424,6.77672804,1716.1,1716.0,8.44073316]
[1693389344526,6.77672804,1716.1,1716.0,8.43735359]
[1693389345433,6.77672804,1716.1,1716.0,8.44104039]
[1693389348032,9.06082011,1716.1,1716.0,11.3552489]
[1693389349427,7.53809207,1716.1,1716.0,11.3552489]
[1693389350430,7.53809207,1716.1,1716.0,13.64430192]
[1693389351233,7.53809207,1716.1,1716.0,13.64633173]
[1693389352238,7.53809207,1716.1,1716.0,12.58238741]
[1693389359442,8.29945609,1716.1,1716.0,8.90715152]
[1693389367450,7.54126661,1716.1,1716.0,12.58237721]
[1693389375351,5.254,1716.1,1716.0,12.58237721]
[1693389376847,8.29945609,1716.1,1716.0,12.58237721]
[1693389377050,8.29945609,1716.1,1716.0,8.61445595]
[1693389377253,8.29945609,1716.1,1716.0,10.90350897]
[1693389377456,8.29945609,1716.1,1716.0,9.37457721]
[1693389377851,8.29945609,1716.1,1716.0,10.9035753]
[1693389378856,8.29945609,1716.1,1716.0,9.37457721]
[1693389381363,9.06082011,1716.1,1716.0,4.91134582]
[1693389382561,9.06082011,1716.1,1716.0,4.44722498]
[1693389383254,9.06082011,1716.1,1716.0,0.0036868]
[1693389389368,5.254,1716.1,1716.0,1.53302667]
[1693389392969,5.254,1716.1,1716.0,0.0036868]
[1693389392970,9.06082011,1716.1,1716.0,0.0036868]
[1693389396574,5.254,1716.1,1716.0,0.0036868]
[1693389397373,5.254,1716.1,1715.8,3.2078]
[1693389397577,8.3038508,1715.9,1715.8,3.2078]
[1693389398479,8.3038508,1715.9,1715.8,3.211196]
[1693389399578,8.30363208,1715.9,1715.8,3.211196]
[1693389401880,8.30363208,1715.9,1715.8,4.64477776]
[1693389402378,8.30363208,1715.9,1715.8,3.211196]
[1693389404579,7.54167392,1715.9,1715.8,8.41815801]
[1693389407588,7.54167392,1715.9,1715.8,9.85173977]
[1693389410585,7.54167392,1715.9,1715.8,8.41815801]
[1693389411983,7.54167392,1715.9,1715.8,7.65387187]
[1693389412181,8.30363208,1715.9,1715.8,0.003396]
[1693389412376,11.51143208,1715.9,1715.8,0.003396]
[1693389416887,0.08108737,1715.8,1715.6,1.52811353]
[1693389417091,11.51043257,1715.7,1715.5,1.52811353]
[1693389417283,5.254,1715.6,1715.5,1.52811353]
[1693389417489,10.23441684,1715.6,1715.5,1.52799488]
[1693389417984,10.23441684,1715.6,1715.4,6.2793872]
[1693389418189,6.77795921,1715.5,1715.4,6.2793872]
[1693389418390,6.77795921,1715.5,1715.4,6.90263825]
[1693389419591,7.54052947,1715.5,1715.4,2.4594]
[1693389419988,7.54052947,1715.5,1715.4,2.91954004]
[1693389420589,7.53939263,1715.5,1715.4,2.91954004]
[1693389422393,5.254,1715.5,1715.4,2.91954004]
[1693389422594,7.53916598,1715.5,1715.4,2.91954004]
[1693389424593,7.53916598,1715.5,1715.4,2.92392217]
[1693389425094,7.53916598,1715.5,1715.4,4.35750393]
[1693389426191,9.06204687,1715.5,1715.4,4.35750393]
[1693389426794,9.06204687,1715.5,1715.4,8.8006899]
[1693389426795,5.254,1715.5,1715.4,8.8006899]
[1693389426995,5.254,1715.5,1715.4,11.09268222]
[1693389427197,5.254,1715.5,1715.4,9.56468734]
[1693389427787,5.254,1715.5,1715.4,17.1280223]
[1693389434795,5.254,1715.5,1715.4,16.36198044]
[1693389436700,5.254,1715.5,1715.4,18.65397276]
[1693389436896,5.254,1715.5,1715.4,16.36198044]
[1693389439894,5.254,1715.5,1715.4,18.65397276]
[1693389440496,5.254,1715.5,1715.4,16.36198044]
[1693389440999,5.254,1715.5,1715.4,18.65397276]
[1693389441897,6.77688089,1715.6,1715.4,18.65397276]
[1693389442098,5.254,1715.6,1715.5,7.00368694]
[1693389442499,5.254,1715.6,1715.5,7.00805828]
[1693389445408,5.254,1715.6,1715.5,19.88334564]
[1693389445706,5.254,1715.6,1715.5,17.59135332]
[1693389446607,5.254,1715.6,1715.5,19.88334564]
[1693389446802,5.254,1715.6,1715.5,18.35739518]
[1693389449010,6.77688089,1715.6,1715.5,17.5922201]
[1693389453314,6.77688089,1715.6,1715.5,19.88421242]
[1693389454419,9.18578089,1715.6,1715.5,19.88421242]
[1693389455315,11.47094687,1715.6,1715.5,18.35739518]
[1693389456421,9.94806598,1715.6,1715.5,18.36230912]
[1693389457119,9.18782074,1715.6,1715.5,19.12630656]
[1693389464122,9.94806598,1715.6,1715.5,18.36319992]
[1693389466126,11.47354228,1715.6,1715.5,18.36319992]
[1693389468328,9.94806598,1715.6,1715.5,18.36319992]
[1693389469830,9.94806598,1715.6,1715.5,16.0703168]
[1693389471729,9.94806598,1715.6,1715.5,19.12630656]
[1693389472132,9.18863385,1715.6,1715.5,19.12630656]
[1693389478537,9.18863385,1715.6,1715.5,16.0703168]
[1693389479236,9.18863385,1715.6,1715.5,19.12841574]
[1693389487246,9.94806598,1715.6,1715.5,19.12841574]
[1693389489746,7.6629,1715.6,1715.5,19.12841574]
[1693389491748,10.71160596,1715.6,1715.5,19.12841574]
[1693389494253,9.95318484,1715.6,1715.5,19.890304]
[1693389496850,9.95318484,1715.6,1715.5,19.1304669]
[1693389498557,9.95318484,1715.6,1715.5,16.86053042]
[1693389499155,9.95318484,1715.6,1715.5,9.19223582]
[1693389502356,10.71160596,1715.6,1715.5,8.42672313]
[1693389508261,10.71160596,1715.6,1715.5,9.95621547]
[1693389508465,10.71160596,1715.6,1715.5,4.45392724]
[1693389508466,10.71497205,1715.6,1715.5,4.45392724]
[1693389508656,10.71493439,1715.6,1715.5,4.45388259]
[1693389508859,7.6629,1715.6,1715.5,1.53877762]
[1693389509264,7.6629,1715.6,1715.5,0.00928528]
[1693389509458,10.71491159,1715.6,1715.5,3.83256491]
[1693389509662,13.15171159,1715.6,1715.5,6.74770879]
[1693389510467,13.15171159,1715.6,1715.5,4.45364848]
[1693389515468,12.38745239,1715.6,1715.5,4.45364848]
[1693389515773,9.95065239,1715.6,1715.5,6.65207123]
[1693389517368,10.71491159,1715.6,1715.5,1.44286704]
[1693389522068,10.71491159,1715.6,1715.5,0.00928528]
[1693389524374,9.95078311,1715.6,1715.5,5.21836362]
[1693389524578,9.95078311,1715.6,1715.5,6.65194538]
[1693389533485,9.95078311,1715.6,1715.5,5.21836362]
[1693389533682,9.95078311,1715.6,1715.5,6.74722528]
[1693389533683,10.71491159,1715.6,1715.5,6.74722528]
[1693389534481,10.71491159,1715.6,1715.5,1.53814694]
[1693389539490,11.47791449,1715.6,1715.5,0.00928528]
[1693389544094,7.6629,1715.6,1715.5,0.00928528]
[1693389546597,8.1269987,1715.6,1715.5,0.00928528]
[1693389546893,11.94052796,1715.6,1715.5,0.00928528]
[1693389549498,8.1269987,1715.6,1715.5,0.00928528]
[1693389550798,10.71341706,1715.6,1715.5,1.44286704]
[1693389551098,10.71341706,1715.6,1715.5,2.9717287]
[1693389553599,8.30451706,1715.6,1715.5,2.9717287]
[1693389553900,8.30451706,1715.6,1715.5,5.88687531]
[1693389554899,5.254,1715.6,1715.5,1.44286704]
[1693389556703,5.254,1715.6,1715.5,0.00928528]
[1693389557004,9.06752926,1715.6,1715.5,0.00928528]
[1693389561704,8.30474635,1715.6,1715.5,1.53814694]
[1693389562501,8.77233574,1715.6,1715.5,1.53814694]
[1693389563002,8.77233574,1715.6,1715.5,4.45331083]
[1693389564006,8.77233574,1715.6,1715.5,1.53814694]
[1693389564506,8.77233574,1715.6,1715.5,4.45331305]
[1693389565303,8.77233574,1715.6,1715.5,5.88689481]
[1693389567807,8.77233574,1715.6,1715.5,4.45331305]
[1693389569909,8.77233574,1715.6,1715.5,1.53814694]
[1693389572814,8.77233574,1715.6,1715.5,2.9717287]
[1693389574407,8.77233574,1715.6,1715.5,5.88689729]
[1693389574611,8.77233574,1715.6,1715.5,4.45331553]
[1693389576904,9.53511865,1715.6,1715.5,0.00928528]
[1693389577102,5.72158939,1715.6,1715.5,0.00928528]
[1693389577311,9.53646803,1715.6,1715.5,0.00928528]
[1693389585015,8.77398387,1715.6,1715.5,6.74785197]
[1693389585216,8.77398387,1715.6,1715.5,8.18143373]
[1693389591221,8.77398387,1715.6,1715.5,6.65207486]
[1693389591618,8.30639448,1715.6,1715.5,6.65207486]
[1693389591813,8.30639448,1715.7,1715.5,15.02986976]
[1693389592019,9.06887864,1715.7,1715.6,4.73720941]
[1693389592215,9.06887864,1715.7,1715.6,7.00714589]
[1693389592617,9.06887864,1715.7,1715.6,7.016416]
[1693389592816,5.254,1715.7,1715.6,7.016416]
[1693389593825,8.30575524,1715.7,1715.6,7.016416]
[1693389596025,8.30575524,1715.7,1715.6,4.74647952]
[1693389596516,10.70975524,1715.7,1715.6,4.74647952]
[1693389598934,10.70975524,1715.7,1715.6,6.18006128]
[1693389599129,10.70975524,1715.7,1715.6,4.74647952]
[1693389599931,7.658,1715.7,1715.6,9.95548929]
[1693389600131,7.658,1715.7,1715.6,11.38907105]
[1693389600435,7.658,1715.7,1715.6,8.42607988]
[1693389601334,10.70975524,1715.7,1715.6,7.66060353]
[1693389601534,11.47287864,1715.7,1715.6,0.00927011]
[1693389605437,11.94277282,1715.7,1715.6,0.00927011]
[1693389607038,8.12789418,1715.7,1715.6,0.00927011]
[1693389609134,0.08108737,1715.6,1715.4,0.00874354]
[1693389609340,3.81259088,1715.5,1715.4,0.00874354]
[1693389609643,6.23709088,1715.5,1715.4,0.00874354]
[1693389611650,2.4245,1715.5,1715.4,0.00874354]
[1693389611949,11.49063733,1715.5,1715.4,0.00874354]
[1693389612450,7.6785,1715.5,1715.4,0.00874354]
[1693389613349,11.49063733,1715.5,1715.4,0.00874354]
[1693389613648,7.6785,1715.5,1715.4,0.00874354]
[1693389615153,7.6785,1715.5,1715.4,1.53717203]
[1693389616953,10.72791613,1715.5,1715.4,1.53717203]
[1693389617952,10.72791613,1715.5,1715.4,2.97075379]
[1693389618554,7.6785,1715.5,1715.4,2.97075379]
[1693389622251,10.72791613,1715.5,1715.4,1.4423253]
[1693389623457,7.6785,1715.5,1715.4,2.97075379]
[1693389625552,5.254,1715.5,1715.4,2.97075379]
[1693389625758,6.7784825,1715.5,1715.4,6.6501564]
[1693389629359,5.254,1715.5,1715.4,2.9701576]
[1693389637266,6.77843937,1715.5,1715.4,6.65011217]
[1693389638263,6.77843937,1715.5,1715.4,9.85791217]
[1693389639264,9.21673937,1715.5,1715.4,9.85791217]
[1693389643669,7.6923,1715.5,1715.4,9.85791217]
[1693389644473,7.6923,1715.5,1715.4,9.09390248]
[1693389644873,7.6923,1715.5,1715.4,11.38654522]
[1693389645670,10.74171613,1715.5,1715.4,11.38654522]
[1693389648780,10.74171613,1715.5,1715.4,9.95296346]
[1693389652581,9.98068778,1715.5,1715.4,8.42433041]
[1693389656582,9.98068778,1715.5,1715.4,9.85791217]
[1693389657083,10.74171613,1715.5,1715.4,9.85791217]
[1693389658176,9.98076106,1715.5,1715.4,9.85791217]
[1693389666690,9.98076106,1715.5,1715.4,7.56526943]
[1693389667688,10.74171613,1715.5,1715.4,9.85978844]
[1693389669289,8.30341613,1715.5,1715.4,9.85978844]
[1693389669490,8.30341613,1715.5,1715.4,17.28863453]
[1693389674689,8.30341613,1715.5,1715.4,18.05097251]
[1693389676891,8.30341613,1715.5,1715.4,16.61739075]
[1693389677289,8.30341613,1715.5,1715.4,9.18854466]
[1693389677897,8.30341613,1715.5,1715.4,10.62212642]
[1693389678696,8.30341613,1715.5,1715.4,9.18854466]
[1693389680498,8.30341613,1715.5,1715.4,10.62212642]
[1693389681899,8.30341613,1715.5,1715.4,8.42688563]
[1693389682901,8.30341613,1715.5,1715.4,9.86046739]
[1693389683506,8.30341613,1715.5,1715.4,8.42688563]
[1693389685605,8.30341613,1715.5,1715.4,9.86046739]
[1693389687414,8.30341613,1715.5,1715.4,8.42688563]
[1693389687610,9.06613733,1715.5,1715.4,7.6618935]
[1693389689815,8.30673911,1715.5,1715.4,8.42688563]
[1693389691415,8.30673911,1715.5,1715.4,9.86046739]
[1693389692217,8.30673911,1715.5,1715.4,8.42688563]
[1693389693714,8.30623874,1715.5,1715.4,8.42647786]
[1693389693915,8.30623874,1715.5,1715.4,9.86005962]
[1693389694823,8.30623874,1715.5,1715.4,8.42647786]
[1693389696625,8.30623874,1715.5,1715.4,9.95609746]
[1693389696823,9.06929842,1715.5,1715.4,4.74616314]
[1693389701325,9.06929842,1715.5,1715.4,6.1797449]
[1693389701819,9.52722092,1715.5,1715.4,6.1797449]
[1693389703331,9.52722092,1715.5,1715.4,4.74616314]
[1693389705030,8.76358716,1715.5,1715.4,7.66153407]
[1693389705428,8.76358716,1715.5,1715.4,9.09511583]
[1693389708533,8.76358716,1715.5,1715.4,7.66153407]
[1693389709932,8.76358716,1715.5,1715.4,9.09511583]
[1693389710234,8.76358716,1715.5,1715.4,7.66153407]
[1693389711333,8.76358716,1715.5,1715.4,9.09511583]
[1693389712134,8.76358716,1715.5,1715.4,6.1797449]
[1693389717932,8.30566466,1715.5,1715.4,9.86006889]
[1693389718138,5.254,1715.5,1715.4,17.58494026]
[1693389718641,7.54270258,1715.5,1715.4,17.58494026]
[1693389720137,8.30566466,1715.5,1715.4,16.8196046]
[1693389727155,7.54271182,1715.5,1715.4,17.58494026]
[1693389734355,7.54271182,1715.5,1715.4,19.11412343]
[1693389734356,8.30566466,1715.5,1715.4,19.11412343]
[1693389736257,8.30566466,1715.5,1715.4,16.81952044]
[1693389742359,7.54236093,1715.5,1715.4,17.58494026]
[1693389745372,2.28836093,1715.5,1715.4,17.58494026]
[1693389749377,2.28836093,1715.5,1715.4,15.29033727]
[1693389751475,2.28836093,1715.5,1715.4,18.34980793]
[1693389754378,1.52597055,1715.5,1715.4,18.34980793]
[1693389754578,10.10946093,1715.6,1715.5,2.26993648]
[1693389754774,10.10946093,1715.6,1715.5,5.18527708]
[1693389754982,10.10946093,1715.6,1715.5,15.89273162]
[1693389757485,10.10946093,1715.6,1715.5,15.12802052]
[1693389761893,4.85546093,1715.6,1715.5,15.12802052]
[1693389764693,4.85546093,1715.6,1715.5,15.89273162]
[1693389769902,4.85546093,1715.6,1715.5,16.3559759]
[1693389772500,4.85546093,1715.6,1715.5,15.59111117]
[1693389779509,4.85546093,1715.6,1715.5,16.3559759]
[1693389786015,2.5671,1715.6,1715.5,16.3559759]
[1693389786514,4.85546093,1715.6,1715.5,16.3559759]
[1693389787715,4.85546093,1715.6,1715.5,15.59118801]
[1693389794819,4.85546093,1715.6,1715.5,16.3559759]
[1693389796419,1.15961949,1715.6,1715.5,16.3559759]
[1693389796618,9.94396093,1715.7,1715.5,22.37517992]
[1693389796619,2.4016,1715.7,1715.5,22.37517992]
[1693389796816,2.4016,1715.7,1715.6,16.6340075]
[1693389797125,2.28836093,1715.8,1715.6,24.26284837]
[1693389797319,1.70546093,1715.8,1715.7,8.24412893]
[1693389797720,1.70546093,1715.8,1715.7,15.98580971]
[1693389799725,4.25226093,1715.8,1715.7,15.98580971]
[1693389801427,4.25226093,1715.8,1715.7,12.92695786]
[1693389802225,4.25226093,1715.8,1715.7,15.2195558]
[1693389802835,4.25226093,1715.8,1715.7,12.92695786]
[1693389803037,4.25226093,1715.8,1715.7,15.21953512]
[1693389803432,2.5468,1715.8,1715.7,15.21953512]
[1693389809938,2.5468,1715.8,1715.7,16.74741051]
[1693389810138,2.5468,1715.8,1715.7,16.74740912]
[1693389812035,2.5468,1715.8,1715.7,22.00140912]
[1693389814434,2.5468,1715.8,1715.7,22.47298482]
[1693389817031,2.5468,1715.8,1715.7,20.94511082]
[1693389824838,2.5468,1715.8,1715.7,22.4729183]
[1693389825044,10.85246466,1715.8,1715.7,1.52780748]
[1693389825241,10.85246466,1715.8,1715.6,5.50037726]
[1693389825242,7.8008,1715.8,1715.6,4.73560748]
[1693389825544,5.33508737,1715.7,1715.6,4.7357281]
[1693389825740,5.33508737,1715.7,1715.6,7.65059285]
[1693389826739,5.33508737,1715.7,1715.6,9.08417461]
[1693389827939,5.33508737,1715.7,1715.6,7.65059285]
[1693389828339,5.33508737,1715.7,1715.6,9.94248501]
[1693389828541,5.33508737,1715.7,1715.6,7.65059285]
[1693389829643,5.33508737,1715.7,1715.6,11.37606677]
[1693389830640,5.33508737,1715.7,1715.6,9.94248501]
[1693389831543,5.33508737,1715.7,1715.6,7.65059285]
[1693389832039,5.33508737,1715.7,1715.6,8.41455691]
[1693389832437,5.33508737,1715.7,1715.6,9.84813867]
[1693389832633,5.33508737,1715.7,1715.6,8.41455691]
[1693389835240,5.33508737,1715.7,1715.6,9.84813867]
[1693389838347,5.33508737,1715.7,1715.6,8.41455691]
[1693389838548,5.33508737,1715.7,1715.6,9.84813867]
[1693389845558,5.254,1715.7,1715.6,9.84813867]
[1693389847151,5.254,1715.7,1715.6,11.37680391]
[1693389849458,5.254,1715.7,1715.6,9.84813867]
[1693389850662,5.254,1715.7,1715.6,11.37679958]
[1693389851259,5.254,1715.7,1715.6,9.84813867]
[1693389851461,5.254,1715.7,1715.6,11.37680929]
[1693389852252,5.254,1715.7,1715.6,9.84813867]
[1693389852855,5.254,1715.7,1715.6,11.37682285]
[1693389853263,5.254,1715.7,1715.6,9.84813867]
[1693389853758,5.254,1715.7,1715.6,11.37683947]
[1693389853958,5.254,1715.7,1715.6,11.37684006]
[1693389854260,5.254,1715.7,1715.6,9.84813867]
[1693389854456,5.71807228,1715.7,1715.6,9.84813867]
[1693389857261,8.00733096,1715.7,1715.6,9.84813867]
[1693389857861,8.00733096,1715.7,1715.6,8.41455691]
[1693389858058,5.71807228,1715.7,1715.6,4.44377219]
[1693389858264,5.71807228,1715.7,1715.5,1.52890744]
[1693389858456,10.70657107,1715.6,1715.5,4.44412938]
[1693389858763,10.78765844,1715.6,1715.5,4.44412938]
[1693389859356,10.78765844,1715.6,1715.5,1.52890744]
[1693389862356,10.78765844,1715.6,1715.4,4.74545098]
[1693389862558,7.54166934,1715.5,1715.4,4.74545098]
[1693389862765,7.54166934,1715.5,1715.4,7.66070178]
[1693389863366,7.54166934,1715.5,1715.4,4.74545098]
[1693389870470,7.54166934,1715.5,1715.4,9.95259581]
[1693389871368,7.54126676,1715.5,1715.4,9.95144012]
[1693389872474,5.254,1715.5,1715.4,7.65965356]
[1693389874567,6.77868033,1715.5,1715.4,7.65965356]
[1693389876870,6.77868033,1715.5,1715.4,9.09323532]
[1693389877266,7.54126676,1715.5,1715.4,6.17798301]
[1693389878474,8.01571296,1715.5,1715.4,6.17798301]
[1693389879874,8.01571296,1715.5,1715.4,4.74440125]
[1693389880979,8.01571296,1715.5,1715.4,6.17798301]
[1693389881678,8.01571296,1715.5,1715.4,4.74440125]
[1693389882175,8.01571296,1715.5,1715.4,3.21654354]
[1693389883380,8.01571296,1715.5,1715.4,4.74440125]
[1693389885281,8.01571296,1715.5,1715.4,7.65967132]
[1693389885469,9.54039003,1715.5,1715.4,9.09325308]
[1693389885875,9.54039003,1715.5,1715.4,7.65967132]
[1693389886971,8.01571296,1715.5,1715.4,4.74440125]
[1693389891184,8.01571296,1715.5,1715.4,7.65970514]
[1693389897188,8.01571296,1715.5,1715.4,9.9514917]
[1693389899495,8.77813522,1715.5,1715.4,4.74529259]
[1693389902193,5.7284462,1715.5,1715.4,4.74529259]
[1693389903291,9.54055748,1715.5,1715.4,7.66065426]
[1693389907496,8.78404336,1715.5,1715.4,8.42369177]
[1693389914607,9.54055748,1715.5,1715.4,7.661839]
[1693389922717,8.78429578,1715.5,1715.4,8.42369177]
[1693389927925,8.78457553,1715.5,1715.4,8.42697051]
[1693389931327,8.78457553,1715.5,1715.4,9.86055227]
[1693389937727,9.54860787,1715.5,1715.4,9.09566751]
[1693389940638,9.54860787,1715.5,1715.4,11.39073881]
[1693389941138,9.54860787,1715.5,1715.4,9.09566751]
[1693389941337,9.54860787,1715.5,1715.4,11.39073881]
[1693389941833,4.29460787,1715.5,1715.4,11.39073881]
[1693389942136,9.54860787,1715.5,1715.4,11.39073881]
[1693389943037,9.54860787,1715.5,1715.4,9.95715705]
[1693389944635,9.54860787,1715.5,1715.4,11.39073881]
[1693389944835,5.7284462,1715.5,1715.4,9.86055227]